bitfinex-derivatives/quotes_SOLF0:USTF0_20260118
["timestamp","ask_amount","ask_price","bid_price","bid_amount"]
[1768749728940,6.42392606,142.16,142.09,8.78659618]
[1768749729343,14.58351677,142.18,142.1,8.73618569]
[1768749729533,5.34004397,142.17,142.1,8.73618569]
[1768749729729,14.58351677,142.18,142.1,8.73618569]
[1768749729934,8.25101677,142.18,142.1,10.5123267]
[1768749730333,8.25101677,142.18,142.13,0.04998541]
[1768749731643,6.47300711,142.17,142.13,0.04998541]
[1768749731843,6.47300711,142.17,142.1,6.3354]
[1768749733042,6.47241224,142.16,142.1,6.3354]
[1768749733336,6.47241224,142.16,142.12,0.05371519]
[1768749734034,8.24796253,142.18,142.12,0.05371519]
[1768749734441,6.47182152,142.17,142.12,0.05371519]
[1768749734641,8.2473712,142.16,142.12,0.05371519]
[1768749737443,6.51605679,142.15,142.09,6.3359]
[1768749737844,6.4159694,142.13,142.07,15.07298569]
[1768749738646,0.04813176,142.11,142.07,15.07298569]
[1768749740245,0.04813176,142.11,142.07,8.73618569]
[1768749744148,6.3341,142.14,142.08,0.05167132]
[1768749744347,6.3341,142.14,142.09,9.18966684]
[1768749745958,8.19477489,142.15,142.09,9.18966684]
[1768749751157,14.52837489,142.15,142.09,9.18966684]
[1768749751458,6.41589082,142.14,142.09,9.18966684]
[1768749751845,8.19203183,142.14,142.09,9.18966684]
[1768749752247,6.41589082,142.14,142.09,9.18966684]
[1768749752551,8.19203183,142.14,142.09,9.18966684]
[1768749752756,14.52613183,142.14,142.08,0.05167132]
[1768749752956,6.41510521,142.13,142.08,0.05167132]
[1768749755856,12.74970521,142.13,142.08,0.05167132]
[1768749761267,6.335,142.12,142.08,0.05167132]
[1768749761466,6.40647258,142.11,142.02,8.4270767]
[1768749761662,6.40647258,142.11,142.02,10.20321771]
[1768749762065,6.3363,142.09,142.02,10.20321771]
[1768749762862,6.3363,142.09,142.04,8.4270767]
[1768749763059,6.3368,142.08,142.04,8.4270767]
[1768749763263,6.3368,142.08,142.04,7.67e-05]
[1768749763571,1.776607,142.09,142.04,7.67e-05]
[1768749763766,10.60096821,142.09,142.04,7.67e-05]
[1768749763959,6.38512624,142.07,142.01,1.776607]
[1768749765170,6.38512624,142.07,142.02,8.4270767]
[1768749767672,6.38512624,142.07,142.02,10.2036837]
[1768749769074,0.04792624,142.07,142.02,10.2036837]
[1768749769376,0.04792624,142.07,142.02,8.4270767]
[1768749769578,0.04792624,142.07,142.02,10.2036837]
[1768749769877,0.04792624,142.07,142.02,8.4270767]
[1768749774283,0.04792624,142.07,142.03,9.26641971]
[1768749776384,8.57689984,142.06,142.03,0.04604042]
[1768749781989,8.57689984,142.06,142.0,9.22037929]
[1768749784191,8.57689984,142.05,141.98,10.99698629]
[1768749784985,0.05410572,142.03,141.98,10.99698629]
[1768749787283,0.05410572,142.03,141.98,17.33798629]
[1768749787689,0.05410572,142.03,141.99,9.22037929]
[1768749791697,0.05410572,142.03,141.99,15.56087929]
[1768749792098,8.57689984,142.05,142.0,9.22037929]
[1768749792300,10.35350684,142.07,142.0,11.04614636]
[1768749793105,8.57689984,142.07,142.0,11.04614636]
[1768749793610,0.0509963,142.05,142.0,11.04614636]
[1768749793811,0.0509963,142.05,142.0,17.38604636]
[1768749794013,0.0509963,142.05,142.01,9.22037929]
[1768749795916,0.0509963,142.05,142.0,6.38906007]
[1768749796315,0.0509963,142.05,142.0,15.60943936]
[1768749798715,8.62789614,142.05,142.0,6.38906007]
[1768749798915,8.62789614,142.05,142.0,0.04916007]
[1768749801422,14.91539984,142.04,142.0,0.04916007]
[1768749801723,14.91539984,142.04,141.98,9.22037929]
[1768749803412,14.91539984,142.04,141.98,10.99698629]
[1768749805826,8.57689984,142.04,141.98,10.99698629]
[1768749806324,0.0509963,142.05,142.0,1.776607]
[1768749806520,0.0509963,142.05,142.01,9.56513347]
[1768749810024,15.22820889,142.08,142.01,9.56513347]
[1768749810025,8.89130889,142.08,142.01,9.56513347]
[1768749810331,10.66791589,142.07,142.01,9.56513347]
[1768749811630,10.66791589,142.07,141.99,17.68224047]
[1768749812027,8.89130889,142.07,142.0,9.56513347]
[1768749812325,10.66791589,142.07,142.0,9.56513347]
[1768749814730,8.89130889,142.06,142.0,9.56513347]
[1768749815225,8.89130889,142.06,141.98,11.34174047]
[1768749817425,10.85092328,142.05,141.98,11.34174047]
[1768749818333,9.07431628,142.05,141.98,11.34174047]
[1768749818536,10.85092328,142.05,141.98,11.34174047]
[1768749818934,17.18902328,142.05,141.98,11.34174047]
[1768749821435,15.41281628,142.04,141.98,9.56513347]
[1768749822939,9.07431628,142.04,141.98,9.56513347]
[1768749824139,9.07431628,142.04,141.96,10.53527651]
[1768749824838,10.85264055,142.04,141.96,8.75866951]
[1768749825040,10.85264055,142.04,141.96,15.10046951]
[1768749825839,10.85264055,142.04,141.97,8.75866951]
[1768749827936,10.85264055,142.04,141.97,15.10006951]
[1768749828836,9.07431628,142.03,141.97,15.10006951]
[1768749830538,9.07431628,142.03,141.97,8.75866951]
[1768749830739,10.85264055,142.02,141.97,8.75866951]
[1768749830936,9.07431628,142.02,141.97,8.75866951]
[1768749838949,0.05101408,142.01,141.98,0.05195695]
[1768749840849,0.05101408,142.01,141.98,9.12006446]
[1768749841049,11.09843566,142.04,141.98,9.12006446]
[1768749845759,9.32011139,142.04,141.98,10.89838873]
[1768749846257,6.3383,142.05,141.98,10.89838873]
[1768749848559,11.09843566,142.06,141.99,9.06810751]
[1768749848764,9.32011139,142.06,141.99,9.06810751]
[1768749849468,9.32011139,142.06,142.01,0.05306804]
[1768749856871,9.32011139,142.06,142.01,9.12117555]
[1768749861570,11.09843566,142.08,142.01,9.12117555]
[1768749862363,9.32011139,142.08,142.01,9.12117555]
[1768749863876,11.09843566,142.08,142.01,9.12117555]
[1768749866379,11.09843566,142.08,142.02,9.4038048]
[1768749869486,11.09843566,142.08,142.03,9.4038048]
[1768749869679,214.8853983,142.11,142.03,9.4038048]
[1768749869680,8.78837485,142.1,142.03,9.4038048]
[1768749869986,10.56669912,142.1,142.03,9.4038048]
[1768749870382,8.78837485,142.1,142.05,0.0499001]
[1768749870780,8.78837485,142.1,142.05,9.4537049]
[1768749878290,8.78837485,142.1,142.05,15.7915049]
[1768749881188,276.85188673,142.12,142.06,6.3374]
[1768749881586,9.49356246,142.11,142.06,6.3374]
[1768749883592,265.58,142.12,142.07,6.337]
[1768749883796,267.35832427,142.12,142.06,8.88749799]
[1768749884388,265.58,142.12,142.06,8.88749799]
[1768749884588,265.58,142.12,142.08,0.05296328]
[1768749884792,265.58,142.12,142.08,6.38946328]
[1768749885788,0.05022909,142.11,142.08,6.38946328]
[1768749887386,1.7759197,142.11,142.08,6.38946328]
[1768749887587,1.97e-05,142.11,142.08,6.38946328]
[1768749897902,1.97e-05,142.11,142.08,0.05296328]
[1768749901303,273.46785255,142.12,142.08,0.05296328]
[1768749901603,273.46785255,142.12,142.07,8.8346968]
[1768749902904,273.46785255,142.12,142.08,0.04771398]
[1768749904203,273.46785255,142.12,142.07,8.8346968]
[1768749904406,0.04905908,142.11,142.07,8.8346968]
[1768749905502,0.04905908,142.11,142.08,0.04982074]
[1768749910114,265.54905908,142.11,142.08,0.04982074]
[1768749910709,265.54905908,142.11,142.07,8.8346968]
[1768749911715,272.07869165,142.11,142.05,8.8346968]
[1768749912009,6.52963257,142.1,142.05,8.8346968]
[1768749912318,8.30546072,142.1,142.03,15.1732968]
[1768749912512,6.52963257,142.09,142.03,15.1732968]
[1768749912816,265.5,142.08,142.03,8.8346968]
[1768749913307,0.04439713,142.07,142.03,8.8346968]
[1768749915812,0.04439713,142.07,142.03,15.1733968]
[1768749916119,265.52,142.09,142.04,8.8346968]
[1768749916718,8.11092815,142.12,142.05,8.8346968]
[1768749916918,265.52,142.11,142.05,8.8346968]
[1768749917521,0.04807601,142.1,142.05,8.8346968]
[1768749920622,1.82390416,142.1,142.05,8.8346968]
[1768749921723,0.04807601,142.1,142.05,8.8346968]
[1768749928021,0.04807601,142.1,142.0,98.6215]
[1768749928022,1.77582815,142.09,142.01,8.11532815]
[1768749928821,0.04891976,142.06,142.01,8.11532815]
[1768749929425,0.04891976,142.06,142.01,6.3395]
[1768749930123,0.04891976,142.06,142.02,9.39528411]
[1768749946846,1.82644207,142.06,142.02,9.39528411]
[1768749952448,0.04891976,142.06,142.02,9.39528411]
[1768749952650,1.82644207,142.06,142.02,9.39528411]
[1768749957654,0.04891976,142.06,142.02,9.39528411]
[1768749965545,8.11412231,142.09,142.04,9.87619538]
[1768749971654,8.11312231,142.11,142.04,9.87619538]
[1768749971860,5.34750016,142.1,142.04,9.87619538]
[1768749972056,1.77752231,142.11,142.04,9.87619538]
[1768749972256,5.34750352,142.1,142.04,9.87619538]
[1768749972452,1.77752231,142.11,142.06,9.92300521]
[1768749972658,5.34866748,142.1,142.06,9.92300521]
[1768749972859,6.3358,142.1,142.06,9.92300521]
[1768749976668,1.77752231,142.11,142.06,9.92300521]
[1768749977868,283.13473234,142.12,142.06,9.92300521]
[1768749978966,281.35721003,142.12,142.06,9.92300521]
[1768749979163,283.13473234,142.12,142.06,9.92300521]
[1768749983371,6.3354,142.11,142.06,9.92300521]
[1768749984972,8.11292231,142.11,142.06,9.92300521]
[1768749985869,265.58,142.12,142.06,9.92300521]
[1768749986772,271.9151,142.12,142.06,9.92300521]
[1768749989575,8.11282231,142.11,142.06,9.92300521]
[1768749989964,18.58267691,142.11,142.06,9.92300521]
[1768749991878,1.77752231,142.11,142.06,9.92300521]
[1768749993679,1.77752231,142.09,142.04,10.45857245]
[1768750003095,0.04896937,142.1,142.04,10.45857245]
[1768750003286,1.77752231,142.09,142.04,10.45857245]
[1768750006897,8.16138118,142.1,142.04,10.45857245]
[1768750025113,1.82558118,142.1,142.04,10.45857245]
[1768750025516,0.04896937,142.1,142.04,10.45857245]
[1768750025707,1.82558118,142.1,142.04,10.45857245]
[1768750027113,1.77661181,142.08,142.02,10.28507972]
[1768750027817,12.18479992,142.08,142.02,10.28507972]
[1768750028719,18.52159992,142.08,142.02,10.28507972]
[1768750031711,16.74498811,142.08,142.02,10.28507972]
[1768750031916,1.77661181,142.07,142.02,10.28507972]
[1768750032419,271.9161,142.1,142.02,10.28507972]
[1768750032607,1.77661181,142.09,142.02,10.28507972]
[1768750033012,1.77661181,142.09,142.03,10.28507972]
[1768750034416,1.77661181,142.11,142.04,10.28507972]
[1768750035012,1.77661181,142.11,142.05,10.28507972]
[1768750036923,1.77661181,142.11,142.06,10.28507972]
[1768750039117,12.18479992,142.11,142.06,10.28507972]
[1768750039324,12.18479992,142.11,142.04,1.77661181]
[1768750039325,12.18479992,142.09,142.04,10.28507972]
[1768750040018,0.04858538,142.08,142.04,10.28507972]
[1768750049520,1.77661181,142.12,142.04,12.06169153]
[1768750049721,1.77661181,142.12,142.06,9.77407636]
[1768750049922,222.41387071,142.14,142.07,9.77407636]
[1768750050718,222.41387071,142.14,142.09,0.05137281]
[1768750052123,222.41387071,142.14,142.09,9.82544917]
[1768750052725,220.6372589,142.14,142.09,9.82544917]
[1768750053431,0.04632886,142.13,142.09,9.82544917]
[1768750057635,265.56,142.16,142.09,11.60206098]
[1768750059744,1.77661181,142.17,142.09,11.60206098]
[1768750061039,16.06551821,142.18,142.09,11.60206098]
[1768750061245,17.84213002,142.18,142.09,11.60206098]
[1768750061445,17.84213002,142.18,142.09,11.55068817]
[1768750062045,6.3328,142.17,142.12,0.05065262]
[1768750062741,16.06611821,142.17,142.12,0.05065262]
[1768750062941,9.73331821,142.17,142.12,0.05065262]
[1768750063251,11.50993002,142.17,142.12,0.05065262]
[1768750066445,9.73331821,142.17,142.12,0.05065262]
[1768750066849,9.73331821,142.17,142.12,10.1456418]
[1768750070440,265.54,142.2,142.1,10.09498918]
[1768750070441,11.50800499,142.16,142.1,10.09498918]
[1768750071446,11.50800499,142.14,142.08,10.09498918]
[1768750073552,0.04471567,142.12,142.08,10.09498918]
[1768750075051,1.77468678,142.14,142.09,10.53723709]
[1768750075549,16.41843544,142.16,142.09,12.31192387]
[1768750075755,10.08523544,142.16,142.09,12.31192387]
[1768750076846,10.08523544,142.16,142.09,10.53723709]
[1768750077351,10.08523544,142.16,142.1,10.48526635]
[1768750077544,11.85992222,142.16,142.1,10.48526635]
[1768750084653,11.85992222,142.14,142.09,0.05197074]
[1768750085052,11.85992222,142.14,142.08,10.48526635]
[1768750085551,11.85992222,142.14,142.1,0.04848506]
[1768750088067,1.77468678,142.13,142.1,0.04848506]
[1768750092066,10.08523544,142.14,142.1,0.04848506]
[1768750092260,1.77468678,142.13,142.1,0.04848506]
[1768750093265,10.08523544,142.14,142.1,0.04848506]
[1768750101172,10.08523544,142.16,142.1,16.86945141]
[1768750108878,1.77468678,142.15,142.1,0.04848506]
[1768750109082,9.88678178,142.14,142.1,0.04848506]
[1768750109283,9.88678178,142.14,142.07,12.19723356]
[1768750109781,9.88678178,142.14,142.09,0.04783224]
[1768750113382,16.22088178,142.14,142.09,0.04783224]
[1768750113685,9.88678178,142.13,142.09,0.04783224]
[1768750118194,0.04504367,142.12,142.09,0.04783224]
[1768750122689,9.80042903,142.12,142.04,12.32510921]
[1768750122889,9.75538536,142.1,142.04,10.55042243]
[1768750123794,9.75538536,142.1,142.05,6.3379]
[1768750124296,0.04823204,142.08,142.05,6.3379]
[1768750124487,9.75538536,142.1,142.06,0.04912895]
[1768750131996,17.86680777,142.12,142.06,10.59955138]
[1768750133394,9.6678231,142.1,142.06,0.04912895]
[1768750148222,9.71724513,142.09,142.06,0.04912895]
[1768750183457,0.04942203,142.09,142.06,0.04912895]
[1768750185253,9.50573949,142.09,142.06,0.04912895]
[1768750201668,11.28221946,142.09,142.02,98.6084]
[1768750201869,11.28221946,142.09,142.02,107.99327382]
[1768750202075,11.28221946,142.09,142.02,109.76975379]
[1768750202570,11.28221946,142.09,142.02,107.99327382]
[1768750202769,11.28221946,142.09,142.05,6.3379]
[1768750204269,9.50573949,142.09,142.05,6.3379]
[1768750205373,0.04942203,142.09,142.05,6.3379]
[1768750205578,9.43699631,142.11,142.06,0.04573911]
[1768750205776,98.4973,142.19,142.06,9.43061293]
[1768750205977,1.77647997,142.14,142.06,9.43061293]
[1768750206179,1.77647997,142.14,142.06,9.38487382]
[1768750206882,1.77647997,142.12,142.05,1.77647997]
[1768750207278,0.04515488,142.11,142.05,1.77647997]
[1768750208076,0.04515488,142.11,142.04,9.38487382]
[1768750208879,0.04515488,142.11,142.05,6.3376]
[1768750213078,0.04515488,142.11,142.05,15.72247382]
[1768750213284,0.04515488,142.11,142.06,6.3374]
[1768750221089,0.04515488,142.11,142.05,9.38487382]
[1768750223680,0.04515488,142.11,142.05,15.72277382]
[1768750229691,0.04515488,142.11,142.06,8.62039751]
[1768750236700,0.04515488,142.11,142.04,8.36635429]
[1768750238297,6.38055488,142.11,142.04,8.36635429]
[1768750242510,271.98055488,142.11,142.04,8.36635429]
[1768750242908,271.98055488,142.11,142.04,10.14283426]
[1768750244108,271.98055488,142.11,142.04,8.36635429]
[1768750244311,6.3358,142.1,142.04,10.14283426]
[1768750248008,6.3358,142.1,142.04,8.36635429]
[1768750249017,265.64515488,142.11,142.04,8.36635429]
[1768750251215,271.98055488,142.11,142.04,8.36635429]
[1768750255320,271.98055488,142.11,142.04,14.70475429]
[1768750258123,271.98055488,142.11,142.04,8.36635429]
[1768750258324,8.1122636,142.1,142.04,8.36635429]
[1768750261424,1.7764636,142.09,142.04,8.36635429]
[1768750261724,1.7764636,142.1,142.04,8.36635429]
[1768750262227,0.04781604,142.08,142.04,8.36635429]
[1768750270132,1.82427964,142.08,142.04,8.36635429]
[1768750272753,0.04781604,142.08,142.04,8.36635429]
[1768750273654,1.7764636,142.07,142.0,13.07081884]
[1768750273846,1.7764636,142.07,141.99,14.84728244]
[1768750274449,0.05069081,142.04,141.99,14.84728244]
[1768750274644,1.7764636,142.07,141.99,13.07081884]
[1768750274847,1.7764636,142.05,141.98,163.95080216]
[1768750275356,1.7764636,142.05,141.98,150.87998332]
[1768750275752,8.1145636,142.05,141.99,8.51260805]
[1768750276454,0.04500722,142.03,141.99,8.51260805]
[1768750279860,6.38390722,142.03,141.99,8.05e-06]
[1768750283864,0.04500722,142.03,141.99,8.05e-06]
[1768750284364,1.82147082,142.03,141.99,8.05e-06]
[1768750286269,1.82147082,142.03,141.96,9.18651998]
[1768750288870,17.42449304,142.03,141.96,9.18651998]
[1768750292578,15.60342222,142.02,141.96,9.18651998]
[1768750293076,17.38028582,142.01,141.96,9.18651998]
[1768750293878,0.05029822,142.0,141.96,9.18651998]
[1768750304685,15.26395384,142.0,141.94,9.3623886]
[1768750304983,1.7764636,141.99,141.94,9.3623886]
[1768750305486,0.04512643,141.98,141.92,9.3623886]
[1768750305685,8.91848205,141.98,141.92,9.3623886]
[1768750306187,15.25978205,141.98,141.92,9.3623886]
[1768750307180,16.99141922,141.97,141.92,9.3623886]
[1768750307487,16.99141922,141.97,141.9,1.7764636]
[1768750307884,8.87335562,141.96,141.86,98.7217]
[1768750308085,8.87335562,141.96,141.89,1.7764636]
[1768750308685,8.87335562,141.96,141.91,0.047443]
[1768750310981,15.21545562,141.96,141.91,0.047443]
[1768750312587,9.01332514,141.95,141.91,0.047443]
[1768750313796,9.01332514,141.95,141.87,6.3458]
[1768750313797,0.04716758,141.94,141.87,8.12612859]
[1768750314087,9.06049272,141.94,141.87,8.12612859]
[1768750314494,0.04716758,141.94,141.88,6.3454]
[1768750315791,0.04716758,141.94,141.89,2.54046657]
[1768750316188,9.06049272,141.94,141.89,2.54046657]
[1768750316980,9.06049272,141.94,141.9,0.0470327]
[1768750317184,0.04716758,141.94,141.9,0.0470327]
[1768750327696,0.04716758,141.94,141.9,9.43378871]
[1768750333005,9.01332514,141.98,141.92,3.23166607]
[1768750333799,9.01332514,141.98,141.92,9.57536607]
[1768750334294,9.01332514,142.0,141.94,3.32198957]
[1768750334497,274.91332514,142.02,141.95,3.26824092]
[1768750335405,274.91332514,142.02,141.97,0.05084493]
[1768750336704,9.01332514,142.02,141.97,3.42610301]
[1768750344602,9.01332514,142.02,141.97,0.05084493]
[1768750344912,10.79365373,142.02,141.97,0.05084493]
[1768750346011,9.01332514,142.02,141.97,0.05084493]
[1768750346510,9.01332514,142.02,141.97,6.39224493]
[1768750347215,10.38239138,142.0,141.97,0.05084493]
[1768750347401,10.38239138,142.0,141.95,6.3421]
[1768750348714,10.38239138,141.98,141.93,10.07198156]
[1768750348914,10.38239138,141.98,141.93,6.3431]
[1768750349517,0.05206107,141.97,141.93,6.3431]
[1768750349721,10.43445245,141.97,141.93,6.3431]
[1768750355923,0.05206107,141.97,141.93,6.3431]
[1768750356429,0.05206107,141.97,141.93,10.37153869]
[1768750361120,0.05206107,141.97,141.94,4.16220625]
[1768750361427,277.98271997,141.99,141.94,4.16220625]
[1768750361626,12.16271997,141.99,141.94,4.21489949]
[1768750362728,12.16271997,141.99,141.94,10.55759949]
[1768750362931,1.78032859,141.99,141.94,10.55759949]
[1768750370328,1.78032859,141.99,141.94,10.77720541]
[1768750372141,11.78876856,142.0,141.94,10.77720541]
[1768750372343,10.00843997,142.0,141.94,10.77720541]
[1768750372644,11.78876856,142.0,141.94,10.77720541]
[1768750374837,11.78753432,142.0,141.94,10.77720541]
[1768750375236,11.78753432,142.0,141.94,6.39539324]
[1768750377942,11.78753432,142.0,141.95,6.3423]
[1768750380846,11.78753432,142.0,141.96,6.3419]
[1768750381243,10.31842849,142.02,141.96,4.63783379]
[1768750382045,10.31842849,142.02,141.98,0.05304135]
[1768750382842,10.31842849,142.02,141.98,6.39394135]
[1768750385552,12.09752284,142.02,141.98,6.39394135]
[1768750391357,10.31842849,142.02,141.98,6.39394135]
[1768750392552,1.77909435,141.99,141.94,4.84322918]
[1768750392854,12.09752284,141.99,141.92,108.63803204]
[1768750393652,12.09752284,141.99,141.95,6.3424]
[1768750393852,0.05109068,141.97,141.95,6.3424]
[1768750395858,12.14861352,141.97,141.9,9.95973204]
[1768750396048,265.82,141.96,141.9,9.95973204]
[1768750396657,265.82,141.96,141.9,11.73882639]
[1768750397157,265.82,141.96,141.92,16.30333204]
[1768750397360,10.36951917,141.97,141.92,16.30333204]
[1768750397553,276.18951917,141.97,141.92,16.30333204]
[1768750399760,0.05109068,141.97,141.92,16.30333204]
[1768750399961,0.05109068,141.97,141.93,9.95973204]
[1768750400661,10.31842849,141.99,141.93,16.30283204]
[1768750400863,265.84,141.98,141.93,16.30283204]
[1768750401057,265.84,141.98,141.94,0.04611786]
[1768750403357,10.31842849,141.99,141.94,0.04611786]
[1768750403560,276.17842849,141.99,141.94,0.04611786]
[1768750404464,12.75924429,141.98,141.94,0.04611786]
[1768750405360,12.75924429,141.98,141.91,6.3439]
[1768750407261,0.04545878,141.96,141.91,6.3439]
[1768750408466,0.04545878,141.96,141.92,6.3436]
[1768750408858,6.3395,142.02,141.93,10.78997311]
[1768750409062,1.77909435,141.99,141.93,10.78997311]
[1768750409264,1.77909435,141.99,141.93,10.83451226]
[1768750409969,1.77909435,141.99,141.94,6.3427]
[1768750410964,12.75924429,141.99,141.94,6.3427]
[1768750411366,12.75924429,141.99,141.94,17.13267311]
[1768750411574,10.98014994,141.99,141.94,17.13267311]
[1768750411765,12.75924429,141.99,141.94,17.13267311]
[1768750412071,0.05048788,141.98,141.94,17.13267311]
[1768750413967,0.05048788,141.98,141.94,6.3427]
[1768750419183,0.05048788,141.98,141.93,0.04453915]
[1768750419578,11.33487711,141.98,141.93,0.04453915]
[1768750433901,10.9758974,141.97,141.93,0.04453915]
[1768750437309,10.9758974,141.95,141.9,6.3443]
[1768750437511,10.9758974,141.95,141.9,17.9251108]
[1768750437895,10.9758974,141.97,141.91,11.5808108]
[1768750438599,0.04647503,141.95,141.92,11.5808108]
[1768750438808,265.9,141.98,141.92,11.5808108]
[1768750439007,10.9758974,141.99,141.93,11.62845877]
[1768750439910,10.9758974,141.99,141.93,17.97165877]
[1768750440907,265.9,142.0,141.94,11.5808108]
[1768750441107,276.8758974,142.0,141.94,11.5808108]
[1768750442412,276.8758974,142.0,141.94,17.9236108]
[1768750443708,265.9,142.0,141.95,17.9231108]
[1768750444109,265.9,142.0,141.96,11.5808108]
[1768750444508,265.9,142.0,141.96,11.63013025]
[1768750445410,265.9,142.0,141.96,0.04931945]
[1768750448913,10.9758974,142.01,141.96,0.04931945]
[1768750449118,10.9758974,142.01,141.96,17.97193025]
[1768750453021,12.7558837,142.01,141.96,6.39111945]
[1768750454519,12.7558837,142.01,141.96,0.04931945]
[1768750458925,12.7558837,142.01,141.96,6.39121945]
[1768750462335,12.7558837,142.01,141.96,0.04931945]
[1768750466943,11.56192479,142.0,141.96,0.04931945]
[1768750467145,11.56192479,141.98,141.92,11.35770197]
[1768750468442,0.05165245,141.96,141.92,11.35770197]
[1768750470744,11.61357724,141.96,141.91,6.3441]
[1768750471045,11.61357724,141.96,141.9,11.35770197]
[1768750472051,11.61357724,141.96,141.9,17.70230197]
[1768750474842,0.05165245,141.96,141.91,17.70180197]
[1768750481754,11.6777252,141.96,141.91,17.70180197]
[1768750481951,0.05165245,141.96,141.92,17.74105159]
[1768750482346,13.40605905,141.99,141.92,17.74105159]
[1768750483552,0.05260088,141.97,141.92,17.74105159]
[1768750484051,11.62607275,141.96,141.91,11.39735159]
[1768750484255,13.40605905,141.96,141.91,11.39735159]
[1768750485146,13.40605905,141.96,141.9,6.3444]
[1768750488655,13.40605905,141.96,141.9,17.74175159]
[1768750496858,13.40621516,141.96,141.9,17.74175159]
[1768750503164,11.62607275,141.96,141.9,17.74175159]
[1768750504271,11.62607275,141.96,141.91,11.10153194]
[1768750507175,0.05260088,141.97,141.91,12.88167435]
[1768750507568,0.05260088,141.97,141.91,11.10153194]
[1768750507768,0.05260088,141.97,141.91,12.88167435]
[1768750508866,0.05260088,141.97,141.92,17.44503194]
[1768750514482,0.05260088,141.97,141.93,0.04964475]
[1768750518284,11.88294102,141.96,141.93,0.04964475]
[1768750518584,11.88294102,141.96,141.91,11.10153194]
[1768750521801,11.88294102,141.95,141.89,11.10153194]
[1768750522694,0.05184503,141.93,141.89,11.10153194]
[1768750529800,0.05184503,141.93,141.89,17.44643194]
[1768750535606,0.05184503,141.93,141.89,19.22657435]
[1768750541818,0.05184503,141.93,141.89,17.44643194]
[1768750545524,12.19466553,141.96,141.89,17.44643194]
[1768750545710,12.19466553,141.96,141.9,12.41768693]
[1768750549224,13.97480794,141.96,141.9,12.41768693]
[1768750555929,12.19466553,141.96,141.9,12.41768693]
[1768750564631,18.53666553,141.96,141.9,12.41768693]
[1768750565836,11.41449288,141.95,141.9,12.41768693]
[1768750568233,11.41449288,141.94,141.88,11.90731126]
[1768750578936,11.41449288,141.93,141.88,11.90731126]
[1768750582736,11.41449288,141.93,141.89,0.05160318]
[1768750582941,0.04812308,141.92,141.89,0.05160318]
[1768750591440,10.96669658,141.95,141.89,11.09881107]
[1768750593739,10.96669658,141.97,141.9,12.82727171]
[1768750594543,10.96669658,141.97,141.92,0.05047374]
[1768750603344,10.89828398,141.99,141.92,13.59178426]
[1768750603646,276.89828398,141.99,141.92,13.59178426]
[1768750604750,276.89828398,141.99,141.92,19.93538426]
[1768750605947,276.89828398,141.99,141.93,11.7612467]
[1768750607452,10.89828398,141.98,141.93,11.7612467]
[1768750610958,10.89828398,141.98,141.93,18.1044467]
[1768750617059,10.89828398,141.98,141.94,6.3428]
[1768750617262,265.96,142.0,141.94,6.3428]
[1768750617263,10.66299979,142.0,141.94,10.96074044]
[1768750617755,10.66299979,142.0,141.95,6.3422]
[1768750617958,10.66299979,142.0,141.94,10.96074044]
[1768750618263,10.66299979,142.0,141.93,1.77949373]
[1768750618264,10.66299979,142.0,141.96,0.0444213]
[1768750619157,1.77949373,142.01,141.96,0.0444213]
[1768750619158,12.44249352,142.02,141.96,11.00516174]
[1768750619357,10.66299979,142.02,141.96,11.00516174]
[1768750619561,10.66299979,142.02,141.96,12.78465547]
[1768750619860,199.11914716,142.03,141.98,10.96074044]
[1768750620056,276.60299979,142.04,141.98,10.96074044]
[1768750620766,276.60299979,142.04,142.0,0.053361]
[1768750620961,8.559391,142.06,142.0,11.01410144]
[1768750621166,1.77949373,142.08,142.0,12.79359517]
[1768750621465,1.77949373,142.08,142.0,12.74023417]
[1768750621862,1.77949373,142.08,142.03,0.04881899]
[1768750622663,154.05949373,142.09,142.03,0.04881899]
[1768750623060,10.66299979,142.08,142.03,0.04881899]
[1768750624472,1.77949373,142.07,142.03,0.04881899]
[1768750624668,12.44249352,142.07,142.03,0.04881899]
[1768750624873,12.44249352,142.05,141.97,109.60324044]
[1768750625569,12.44249352,142.05,141.99,6.3405]
[1768750626175,0.04642012,142.03,141.99,6.3405]
[1768750629080,10.70941991,142.03,141.97,17.30204044]
[1768750633993,10.70941991,142.03,141.97,10.96074044]
[1768750636295,10.70941991,142.03,141.95,19.08233417]
[1768750636296,12.48891364,142.03,141.95,19.08233417]
[1768750636992,18.82791364,142.03,141.95,19.08233417]
[1768750637197,10.66299979,142.0,141.95,10.96074044]
[1768750637995,0.04992072,141.99,141.95,10.96074044]
[1768750646003,0.04992072,141.99,141.95,12.74023417]
[1768750651399,0.04992072,141.99,141.95,10.96074044]
[1768750661506,0.04992072,141.99,141.95,17.30304044]
[1768750661710,12.45630642,142.03,141.96,11.15872919]
[1768750662012,18.79520642,142.03,141.96,8.16913832]
[1768750662209,12.45630642,142.03,141.97,11.15872919]
[1768750662814,10.67681269,142.05,141.97,11.15872919]
[1768750663014,10.67681269,142.05,141.99,11.15872919]
[1768750663213,6.3379,142.06,141.99,11.15872919]